bitfinex/quotes_BTCUSD_20250320
["timestamp","ask_amount","ask_price","bid_price","bid_amount"]
[1742437108961,0.000339,85861.0,85860.0,0.011646]
[1742437109161,0.000339,85861.0,85860.0,0.45133449]
[1742437109369,0.000339,85861.0,85860.0,0.45017003]
[1742437110179,0.000339,85861.0,85860.0,0.45617003]
[1742437110519,1.000339,85863.0,85862.0,0.21253185]
[1742437110520,0.96568772,85863.0,85862.0,0.21253185]
[1742437110653,0.90856975,85863.0,85862.0,0.33210688]
[1742437110853,0.87357947,85863.0,85862.0,0.33210688]
[1742437111093,0.0488,85895.0,85862.0,0.32046088]
[1742437111272,0.0488,85895.0,85880.0,0.19795]
[1742437111475,0.0488,85895.0,85880.0,0.4512892]
[1742437111717,0.0488,85895.0,85880.0,0.45012503]
[1742437112472,0.0488,85895.0,85880.0,0.47880411]
[1742437112718,0.0488,85895.0,85880.0,0.45512503]
[1742437112935,0.0488,85895.0,85880.0,0.46012503]
[1742437117902,0.0488,85895.0,85880.0,0.32752503]
[1742437118117,0.005,85888.0,85880.0,0.1426]
[1742437118331,0.005,85888.0,85880.0,0.01]
[1742437118332,0.076339,85882.0,85880.0,0.01]
[1742437118541,0.076339,85882.0,85880.0,0.1426]
[1742437119234,0.076339,85882.0,85880.0,0.1376]
[1742437119709,0.076339,85882.0,85880.0,0.1426]
[1742437119942,0.000339,85882.0,85880.0,0.154244]
[1742437120135,0.000339,85882.0,85880.0,0.15540827]
[1742437120630,0.000339,85882.0,85880.0,0.144244]
[1742437120862,0.000339,85882.0,85880.0,0.148244]
[1742437121575,0.000339,85882.0,85880.0,0.152244]
[1742437121991,0.000339,85882.0,85880.0,0.15340821]
[1742437122409,0.000339,85882.0,85880.0,0.152244]
[1742437123334,0.000339,85882.0,85880.0,0.1534082]
[1742437123724,0.000339,85882.0,85880.0,0.27298323]
[1742437123926,0.000339,85882.0,85880.0,0.27181903]
[1742437124789,0.000339,85882.0,85880.0,0.26781903]
[1742437124971,0.000339,85882.0,85880.0,0.29271087]
[1742437125145,0.000339,85882.0,85880.0,0.29371087]
[1742437125547,0.000339,85882.0,85880.0,0.29871087]
[1742437125753,0.000339,85882.0,85880.0,0.30725172]
[1742437125917,0.000339,85882.0,85880.0,0.39265172]
[1742437126891,0.000339,85882.0,85880.0,0.38765172]
[1742437127320,0.000339,85882.0,85880.0,0.39365172]
[1742437127516,0.000339,85882.0,85880.0,0.38765172]
[1742437127695,0.000339,85882.0,85880.0,0.38165172]
[1742437128110,0.000339,85882.0,85880.0,0.38765172]
[1742437128504,0.000339,85882.0,85880.0,0.39365172]
[1742437129785,0.000339,85882.0,85880.0,0.26105172]
[1742437129995,0.000339,85882.0,85880.0,0.39361172]
[1742437132392,0.000339,85882.0,85880.0,0.38761172]
[1742437132575,0.000339,85882.0,85880.0,0.39361172]
[1742437133190,0.000339,85882.0,85880.0,0.38761172]
[1742437133957,0.000339,85882.0,85880.0,0.16111087]
[1742437134155,0.000339,85882.0,85880.0,0.30083492]
[1742437134464,0.000339,85882.0,85880.0,0.29967087]
[1742437134881,0.000339,85882.0,85880.0,0.28767087]
[1742437135095,0.000339,85882.0,85880.0,0.29367087]
[1742437135290,0.000339,85882.0,85880.0,0.29967087]
[1742437142534,0.000339,85882.0,85880.0,0.16711087]
[1742437142710,0.000339,85882.0,85880.0,0.29963087]
[1742437147820,0.000339,85882.0,85880.0,0.31417172]
[1742437148070,0.000339,85882.0,85880.0,0.39167172]
[1742437148302,0.000339,85882.0,85880.0,0.42801328]
[1742437148538,0.000339,85882.0,85881.0,0.197948]
[1742437148777,5.2e-07,85882.0,85881.0,0.41866939]
[1742437149012,5.2e-07,85882.0,85881.0,0.41750544]
[1742437150218,5.2e-07,85882.0,85881.0,0.42350544]
[1742437151018,5.2e-07,85882.0,85881.0,0.42950544]
[1742437151527,5.2e-07,85882.0,85881.0,0.42350544]
[1742437151741,5.2e-07,85882.0,85881.0,0.42950544]
[1742437151952,5.2e-07,85882.0,85881.0,0.38040544]
[1742437155063,5.2e-07,85882.0,85881.0,0.37537437]
[1742437157483,5.2e-07,85882.0,85881.0,0.50789437]
[1742437158461,5.2e-07,85882.0,85881.0,0.53289437]
[1742437158871,0.00033952,85882.0,85881.0,1.11229437]
[1742437161680,0.00033952,85882.0,85881.0,0.94023352]
[1742437161885,0.00033952,85882.0,85881.0,1.03641196]
[1742437162707,0.00033952,85882.0,85881.0,0.90389196]
[1742437162915,0.00033952,85882.0,85881.0,1.03641196]
[1742437163683,0.00033952,85882.0,85881.0,1.03041196]
[1742437163914,0.00033952,85882.0,85881.0,1.02441196]
[1742437164117,0.00033952,85882.0,85881.0,1.03641196]
[1742437164500,0.00033952,85882.0,85881.0,0.89789196]
[1742437164730,0.00033952,85882.0,85881.0,0.91083693]
[1742437164901,0.00033952,85882.0,85881.0,0.91683693]
[1742437165103,0.00033952,85882.0,85881.0,0.91083693]
[1742437165395,0.00033952,85882.0,85881.0,0.91683693]
[1742437166687,0.00033952,85882.0,85881.0,0.90483693]
[1742437166894,0.00033952,85882.0,85881.0,0.91083693]
[1742437167137,0.00033952,85882.0,85881.0,0.91683693]
[1742437168469,0.00033952,85882.0,85881.0,0.33743693]
[1742437168777,0.00033952,85882.0,85881.0,0.20491693]
[1742437168993,0.00033952,85882.0,85881.0,0.33743693]
[1742437170056,0.00033952,85882.0,85881.0,0.45701196]
[1742437170502,0.00033952,85882.0,85881.0,0.45718146]
[1742437171330,0.00033952,85882.0,85881.0,0.44518146]
[1742437171550,0.00033952,85882.0,85881.0,0.45118146]
[1742437171751,0.00033952,85882.0,85881.0,0.45718146]
[1742437172191,0.00033952,85882.0,85881.0,0.45118146]
[1742437172327,0.00033952,85882.0,85881.0,0.45718146]
[1742437172979,0.00033952,85882.0,85881.0,0.45118146]
[1742437173413,0.00033952,85882.0,85881.0,0.45718146]
[1742437176741,0.00033952,85882.0,85881.0,0.45118146]
[1742437177478,0.00033952,85882.0,85881.0,0.45718146]
[1742437184656,0.00033952,85882.0,85881.0,0.50809191]
[1742437184902,0.00033952,85882.0,85881.0,0.52826191]
[1742437184903,5.2e-07,85882.0,85881.0,0.52826191]
[1742437185137,5.2e-07,85882.0,85881.0,0.65786191]
[1742437185370,5.2e-07,85882.0,85881.0,0.65186191]
[1742437185587,5.2e-07,85882.0,85881.0,0.65786191]
[1742437186461,5.2e-07,85882.0,85881.0,0.52534191]
[1742437186713,5.2e-07,85882.0,85881.0,0.65786191]
[1742437186947,5.2e-07,85882.0,85881.0,0.51626191]
[1742437187416,5.2e-07,85882.0,85881.0,0.52826191]
[1742437187614,5.2e-07,85882.0,85881.0,0.51372106]
[1742437187842,5.2e-07,85882.0,85881.0,0.50772106]
[1742437188067,5.2e-07,85882.0,85881.0,0.51372106]
[1742437191772,5.2e-07,85882.0,85881.0,0.52826191]
[1742437193616,5.2e-07,85882.0,85881.0,1.05126191]
[1742437193794,5.2e-07,85882.0,85881.0,1.09646191]
[1742437195074,5.2e-07,85882.0,85881.0,1.09046191]
[1742437195469,5.2e-07,85882.0,85881.0,1.09646191]
[1742437195852,5.2e-07,85882.0,85881.0,1.09046191]
[1742437196014,2e-07,85902.0,85898.0,0.17576648]
[1742437196239,8e-07,85913.0,85912.0,0.197876]
[1742437196439,8e-07,85913.0,85912.0,0.50200511]
[1742437196643,0.0001263,85913.0,85912.0,0.50084148]
[1742437196870,3e-07,85913.0,85912.0,0.50084148]
[1742437197746,3e-07,85913.0,85912.0,0.50684148]
[1742437197904,3e-07,85913.0,85912.0,0.52145309]
[1742437198359,3e-07,85913.0,85912.0,0.50691224]
[1742437198564,3e-07,85913.0,85912.0,0.47054264]
[1742437199415,3e-07,85913.0,85912.0,0.48754193]
[1742437199616,3e-07,85913.0,85912.0,0.36106193]
[1742437199819,3e-07,85913.0,85912.0,0.48754193]
[1742437200229,3e-07,85913.0,85912.0,0.35506193]
[1742437200436,3e-07,85913.0,85912.0,0.3679669]
[1742437200844,3e-07,85913.0,85912.0,0.3739669]
[1742437203081,3e-07,85913.0,85912.0,0.49354193]
[1742437204262,3e-07,85913.0,85912.0,0.50808278]
[1742437205358,3e-07,85913.0,85912.0,0.50825218]
[1742437205566,0.0003391,85913.0,85912.0,0.50825218]
[1742437206248,0.0003391,85913.0,85912.0,0.49625218]
[1742437206610,0.0003391,85913.0,85912.0,0.50225218]
[1742437206817,0.0003391,85913.0,85912.0,0.50825218]
[1742437207230,0.0003391,85913.0,85912.0,0.50225218]
[1742437207822,0.0003391,85913.0,85912.0,0.50825218]
[1742437209727,1e-07,85913.0,85912.0,0.50825218]
[1742437209931,1e-07,85913.0,85912.0,1.06559683]
[1742437210416,1e-07,85913.0,85912.0,1.05959683]
[1742437211580,1e-07,85913.0,85912.0,1.06559683]
[1742437212833,1e-07,85913.0,85912.0,1.07159683]
[1742437213598,1e-07,85929.0,85928.0,0.222839]
[1742437213799,1e-07,85929.0,85928.0,0.90429488]
[1742437214764,1e-07,85929.0,85928.0,0.87929488]
[1742437215905,1e-07,85929.0,85928.0,0.88529488]
[1742437216116,1e-07,85929.0,85928.0,0.91414947]
[1742437216321,1e-07,85929.0,85928.0,0.90814947]
[1742437216659,1e-07,85929.0,85928.0,0.91414947]
[1742437217158,1e-07,85929.0,85928.0,0.90814947]
[1742437217403,1e-07,85929.0,85928.0,0.91414947]
[1742437217841,0.0003389,85929.0,85928.0,0.91414947]
[1742437219275,0.00024072,85929.0,85928.0,0.91414947]
[1742437219950,0.00024072,85929.0,85928.0,0.90814947]
[1742437220155,0.00024072,85929.0,85928.0,0.90214947]
[1742437220341,0.00024072,85929.0,85928.0,0.90814947]
[1742437220562,0.00024072,85929.0,85928.0,0.91414947]
[1742437222832,0.00024072,85929.0,85928.0,0.89960862]
[1742437223075,0.12594072,85929.0,85928.0,0.14444]
[1742437224725,0.12594072,85929.0,85928.0,0.156077]
[1742437225230,0.12594072,85929.0,85928.0,0.14444]
[1742437226015,0.12594072,85929.0,85928.0,0.156077]
[1742437226635,0.12594072,85929.0,85928.0,0.14444]
[1742437228413,0.31214072,85929.0,85928.0,0.012]
[1742437228619,0.64065339,85929.0,85928.0,0.012]
[1742437229071,0.64065339,85929.0,85928.0,0.0121694]
[1742437229621,0.64065339,85929.0,85928.0,0.0061694]
[1742437230054,0.64065339,85929.0,85928.0,0.0111694]
[1742437230432,0.64065339,85929.0,85928.0,0.0061694]
[1742437230651,0.64065339,85929.0,85928.0,0.0101694]
[1742437231454,0.64065339,85929.0,85928.0,0.0041694]
[1742437231654,0.64065339,85929.0,85928.0,0.0001694]
[1742437231802,0.64065339,85929.0,85928.0,0.0041694]
[1742437232208,0.64065339,85929.0,85928.0,0.0001694]
[1742437232413,0.76022842,85929.0,85928.0,0.0001694]
[1742437232626,0.619973,85913.0,85912.0,0.0001694]
[1742437232850,0.624973,85913.0,85912.0,0.0001694]
[1742437234424,0.624973,85913.0,85912.0,0.0011694]
[1742437235632,0.624973,85913.0,85912.0,0.0021694]
[1742437237356,0.613334,85913.0,85912.0,0.0021694]
[1742437237560,0.1221,85913.0,85912.0,0.2000454]
[1742437237815,0.00975328,85939.0,85920.0,0.197857]
[1742437237816,0.005,85922.0,85920.0,0.197857]
[1742437238019,0.005,85922.0,85921.0,0.011638]
[1742437238594,0.005,85927.0,85925.0,0.011638]
[1742437238806,0.01209981,85929.0,85925.0,0.197845]
[1742437239009,0.005,85926.0,85925.0,0.197845]
[1742437239406,0.005,85927.0,85925.0,0.197845]
[1742437239612,0.00024072,85929.0,85927.0,0.186203]
[1742437239832,0.00024072,85929.0,85928.0,0.011637]
[1742437240381,0.00031859,85929.0,85928.0,0.011637]
[1742437241467,0.00031859,85929.0,85928.0,0.010637]
[1742437241696,0.00031859,85929.0,85928.0,0.014637]
[1742437242061,0.00031859,85929.0,85928.0,0.018637]
[1742437243350,0.00031859,85929.0,85928.0,0.13937565]
[1742437243500,0.001,85939.0,85938.0,0.011636]
[1742437243712,0.001,85939.0,85938.0,0.45099446]
[1742437243713,0.00141819,85939.0,85938.0,0.45099446]
[1742437243912,0.00141819,85939.0,85938.0,0.44983103]
[1742437244752,0.00141819,85939.0,85938.0,0.45583103]
[1742437244932,0.00141819,85939.0,85938.0,0.46183103]
[1742437246169,0.00141819,85939.0,85938.0,0.49990992]
[1742437246419,0.00141819,85939.0,85938.0,0.91480992]
[1742437246843,0.00141819,85939.0,85938.0,0.76782907]
[1742437246961,0.00141819,85939.0,85938.0,0.90026907]
[1742437247162,0.00141819,85939.0,85938.0,0.89426907]
[1742437247364,0.00141819,85939.0,85938.0,0.88826907]
[1742437247568,0.00141819,85939.0,85938.0,0.89426907]
[1742437247769,0.00141819,85939.0,85938.0,0.90026907]
[1742437247966,0.00141819,85939.0,85938.0,0.88826907]
[1742437248456,0.00141819,85939.0,85938.0,0.90026907]
[1742437250850,0.00141819,85939.0,85938.0,0.89426907]
[1742437251799,0.00141819,85939.0,85938.0,0.86473103]
[1742437252223,0.00141819,85939.0,85938.0,0.87073103]
[1742437252671,0.00141819,85939.0,85938.0,0.86473103]
[1742437253259,0.00141819,85939.0,85938.0,0.68455103]
[1742437253464,0.00141819,85939.0,85938.0,0.67855103]
[1742437253782,0.00141819,85939.0,85938.0,0.68455103]
[1742437254119,0.00141819,85939.0,85938.0,0.69055103]
[1742437254804,0.00141819,85939.0,85938.0,0.27565103]
[1742437255493,0.00175699,85939.0,85938.0,0.27565103]
[1742437257631,0.00175699,85939.0,85938.0,0.14321103]
[1742437257839,0.00175699,85939.0,85938.0,0.27561103]
[1742437259391,0.00175699,85939.0,85938.0,0.1444]
[1742437260017,0.31928989,85939.0,85938.0,0.012]
[1742437260188,0.31839299,85939.0,85938.0,0.012]
[1742437260989,0.31839299,85939.0,85938.0,0.006]
[1742437261592,0.31839299,85939.0,85938.0,0.012]
[1742437261815,0.31839299,85939.0,85938.0,0.006]
[1742437262136,0.31839299,85939.0,85938.0,0.007]
[1742437263099,0.31839299,85939.0,85938.0,0.001]
[1742437263327,0.31839299,85939.0,85938.0,0.003]
[1742437265786,0.00675699,85939.0,85938.0,0.003]
[1742437265999,0.31839299,85939.0,85938.0,0.003]
[1742437266673,0.30675699,85939.0,85938.0,0.003]
[1742437266944,0.30675699,85939.0,85938.0,0.26661103]
[1742437266945,0.00175699,85939.0,85938.0,0.26661103]
[1742437267180,0.0003392,85942.0,85941.0,0.011635]
[1742437267431,0.0003392,85942.0,85941.0,0.13237339]
[1742437267608,0.0003392,85942.0,85941.0,0.31854739]
[1742437267764,0.0003392,85942.0,85941.0,0.31738403]
[1742437268805,0.0003392,85942.0,85941.0,0.32338403]
[1742437269577,0.0003392,85942.0,85941.0,0.32938403]
[1742437270237,0.0003392,85942.0,85941.0,0.012]
[1742437270238,0.0053392,85942.0,85941.0,0.012]
[1742437270405,0.3169742,85942.0,85941.0,0.012]
[1742437270606,0.3053392,85942.0,85941.0,0.012]
[1742437270833,0.3053392,85942.0,85941.0,0.198174]
[1742437271008,0.3053392,85942.0,85941.0,0.209809]
[1742437271317,0.0053392,85942.0,85941.0,0.203809]
[1742437271513,0.0053392,85942.0,85941.0,0.197809]
[1742437272329,0.0053392,85942.0,85941.0,0.201809]
[1742437272994,0.0053392,85942.0,85941.0,0.202809]
[1742437273131,0.0053392,85942.0,85941.0,0.201809]
[1742437273533,0.0053392,85942.0,85941.0,0.205809]
[1742437278306,0.0053392,85942.0,85941.0,0.008]
[1742437280797,0.0053392,85942.0,85941.0,0.019635]
[1742437281028,0.0053392,85942.0,85941.0,0.008]
[1742437282903,0.43654923,85942.0,85941.0,0.008]
[1742437282906,0.51554923,85942.0,85941.0,0.008]
[1742437283143,0.56114923,85942.0,85941.0,0.008]
[1742437284055,0.011636,85934.0,85929.0,0.0001694]
[1742437284253,0.0125329,85933.0,85929.0,0.0001694]
[1742437284459,0.005,85930.0,85929.0,0.0001694]
[1742437285495,0.005,85930.0,85929.0,0.0031694]
[1742437285909,0.005,85930.0,85929.0,0.0001694]
[1742437286975,0.005,85930.0,85929.0,0.0118064]
[1742437287179,0.005,85931.0,85930.0,0.197835]
[1742437287577,0.005,85931.0,85930.0,0.186198]
[1742437287784,0.005,85931.0,85930.0,0.197835]
[1742437288586,0.005,85931.0,85930.0,0.200835]
[1742437288787,0.005,85931.0,85930.0,0.203835]
[1742437289428,0.005,85931.0,85930.0,0.006]
[1742437290420,0.005,85931.0,85930.0,0.0063388]
[1742437290834,0.0008969,85933.0,85932.0,0.011637]
[1742437291009,0.005,85937.0,85936.0,0.197821]
[1742437291776,0.0053392,85942.0,85941.0,0.197809]
[1742437292099,0.0053392,85942.0,85941.0,0.186174]
[1742437292317,0.0053392,85942.0,85925.0,0.318607]
[1742437292318,0.005,85940.0,85925.0,0.318607]
[1742437292517,0.005,85934.0,85929.0,0.1863694]
[1742437292742,0.005,85934.0,85929.0,0.1980064]
[1742437293105,0.005,85934.0,85933.0,0.1324]
[1742437293305,0.0058969,85934.0,85933.0,0.1324]
[1742437294612,0.0058969,85934.0,85933.0,0.1354]
[1742437294821,0.0058969,85934.0,85933.0,0.003]
[1742437295032,0.0175329,85934.0,85933.0,0.006]
[1742437295396,0.0058969,85934.0,85933.0,0.006]
[1742437296147,0.0058969,85934.0,85933.0,0.003]
[1742437296518,0.005,85934.0,85933.0,0.011636]
[1742437296724,0.005,85934.0,85933.0,0.003]
[1742437296930,0.0058969,85934.0,85933.0,0.003]
[1742437297330,0.0058969,85934.0,85930.0,0.0119758]
[1742437297533,0.0058969,85934.0,85933.0,0.002]
[1742437297732,0.0058969,85934.0,85933.0,0.004]
[1742437297943,0.0058969,85934.0,85933.0,0.002]
[1742437298159,0.0058969,85934.0,85930.0,0.0119758]
[1742437298361,0.0058969,85934.0,85933.0,0.006]
[1742437299082,0.0058969,85934.0,85933.0,0.003]
[1742437299502,0.005,85934.0,85932.0,0.186193]
[1742437299740,0.486177,85940.0,85930.0,0.189198]
[1742437299741,0.3,85940.0,85939.0,0.011636]
[1742437300474,0.005,85941.0,85940.0,0.186176]
[1742437301117,0.005,85941.0,85939.0,0.001]
[1742437301557,0.305,85932.0,85929.0,0.0001452]
[1742437301766,0.316637,85930.0,85929.0,0.0001452]
[1742437302696,0.33829796,85930.0,85929.0,0.0041452]
[1742437303534,0.42099796,85930.0,85929.0,0.0041452]
[1742437303941,0.43288805,85930.0,85929.0,0.0001452]
[1742437304142,0.43288805,85930.0,85929.0,0.0011452]
[1742437304504,0.43288805,85930.0,85929.0,0.0031452]
[1742437304704,0.43288805,85930.0,85929.0,0.0001452]
[1742437305062,0.43288805,85930.0,85929.0,0.0011452]
[1742437306285,0.41122709,85930.0,85929.0,0.0011452]
[1742437308428,0.41122709,85930.0,85929.0,0.0001452]
[1742437309050,0.53080212,85930.0,85929.0,0.0001452]
[1742437309247,0.57760212,85930.0,85929.0,0.0001452]
[1742437309686,0.57860212,85930.0,85929.0,0.0001452]
[1742437310110,0.57760212,85930.0,85929.0,0.0001452]
[1742437310500,0.57960212,85930.0,85929.0,0.0001452]
[1742437311232,0.57760212,85930.0,85929.0,0.0001452]
[1742437311590,0.57960212,85930.0,85929.0,0.0001452]
[1742437313919,0.71200212,85930.0,85929.0,0.0001452]
[1742437314121,1.12060212,85930.0,85929.0,0.0001452]
[1742437314567,1.12094112,85930.0,85929.0,0.0001452]
[1742437320793,1.13548197,85930.0,85929.0,0.0001452]
[1742437321354,1.13548197,85930.0,85912.0,0.0001694]
[1742437321355,0.627373,85913.0,85912.0,0.0001694]
[1742437321555,0.74694803,85913.0,85912.0,0.00058759]
[1742437321758,1.19169986,85913.0,85912.0,0.00041819]
[1742437322018,1.19169986,85913.0,85912.0,1.9e-07]
[1742437322650,1.19469986,85913.0,85912.0,1.9e-07]
[1742437322857,1.21746546,85913.0,85912.0,1.9e-07]
[1742437323089,1.21446546,85913.0,85912.0,1.9e-07]
[1742437323507,1.20292461,85913.0,85912.0,1.9e-07]
[1742437323716,1.18015901,85913.0,85912.0,1.9e-07]
[1742437324110,1.18115901,85913.0,85912.0,1.9e-07]
[1742437324260,1.76059901,85913.0,85912.0,1.9e-07]
[1742437324689,1.75959901,85913.0,85912.0,1.9e-07]
[1742437325412,1.76359901,85913.0,85912.0,1.9e-07]
[1742437326158,1.63909901,85913.0,85912.0,1.9e-07]
[1742437326569,1.63609901,85913.0,85912.0,1.9e-07]
[1742437326773,1.63609901,85913.0,85912.0,0.00016969]
[1742437326988,1.63709901,85913.0,85912.0,0.00016969]
[1742437327406,1.63509901,85913.0,85912.0,0.00016969]
[1742437327836,1.63609901,85913.0,85912.0,0.00016969]
[1742437328043,1.63909901,85913.0,85912.0,0.00016969]
[1742437330850,1.63409901,85913.0,85912.0,0.00016969]
[1742437331053,1.63909901,85913.0,85912.0,0.00016969]
[1742437331261,1.11092398,85913.0,85912.0,0.00016969]
[1742437331645,0.23148398,85913.0,85912.0,0.00016969]
[1742437331842,0.03361098,85913.0,85912.0,0.00016969]
[1742437332058,0.34524998,85913.0,85912.0,0.00016969]
[1742437332272,0.04224998,85913.0,85912.0,0.00016969]
[1742437332485,0.03824998,85913.0,85912.0,0.00016969]
[1742437332651,0.03824998,85913.0,85912.0,0.00116969]
[1742437332854,0.33914688,85913.0,85912.0,0.00216969]
[1742437333056,0.33824998,85913.0,85912.0,0.00216969]
[1742437333267,0.33824998,85913.0,85912.0,0.00116969]
[1742437333671,0.33824998,85913.0,85912.0,0.00316969]
[1742437334377,0.33824998,85913.0,85912.0,0.00216969]
[1742437334588,0.33824998,85913.0,85912.0,0.00416969]
[1742437334799,0.316639,85913.0,85912.0,0.00416969]
[1742437335002,0.316639,85913.0,85912.0,0.00216969]
[1742437335213,0.316639,85913.0,85912.0,0.00016969]
[1742437335787,0.3383187,85913.0,85912.0,0.00116969]
[1742437336206,0.3383187,85913.0,85912.0,0.00216969]
[1742437338062,0.3386577,85913.0,85912.0,0.00216969]
[1742437340412,0.45823273,85913.0,85912.0,0.00216969]
[1742437341469,0.45823273,85913.0,85912.0,0.00116969]
[1742437341966,0.45823273,85913.0,85912.0,0.00016969]
[1742437343136,0.53653273,85913.0,85912.0,0.00016969]
[1742437343616,0.45823273,85913.0,85912.0,0.00016969]
[1742437345463,0.49296992,85913.0,85912.0,0.00016969]
[1742437345669,0.49396992,85913.0,85912.0,0.00016969]
[1742437345896,0.49296992,85913.0,85912.0,0.00016969]
[1742437346318,0.49396992,85913.0,85912.0,0.00016969]
[1742437346493,0.46123273,85913.0,85912.0,0.00016969]
[1742437346724,0.4746141,85913.0,85912.0,0.00016969]
[1742437346897,0.5207141,85913.0,85912.0,0.00016969]
[1742437348198,0.50733273,85913.0,85912.0,0.00016969]
[1742437349363,0.46123273,85913.0,85912.0,0.00016969]
[1742437353146,0.43955303,85913.0,85912.0,0.00016969]
[1742437354824,0.13955303,85913.0,85912.0,0.00016969]
[1742437355037,0.44044993,85913.0,85912.0,0.00016969]
[1742437355253,0.43955303,85913.0,85912.0,0.00016969]
[1742437355489,0.46127438,85913.0,85912.0,0.00016969]
[1742437356119,0.34169935,85913.0,85912.0,0.00016969]
[1742437356542,0.33669935,85913.0,85912.0,0.00016969]
[1742437356752,0.32506035,85913.0,85912.0,0.00016969]
[1742437356951,0.02506035,85913.0,85912.0,0.09400869]
[1742437357473,0.02506035,85913.0,85912.0,0.13904916]
[1742437357612,0.005,85924.0,85923.0,0.011638]
[1742437358044,0.01222909,85930.0,85925.0,0.011638]
[1742437358246,0.01222909,85930.0,85929.0,0.011637]
[1742437358494,0.000339,85930.0,85929.0,0.23416566]
[1742437359305,0.000339,85930.0,85929.0,0.197837]
[1742437359632,0.000339,85930.0,85929.0,0.13236]
[1742437359633,0.006339,85930.0,85929.0,0.13236]
[1742437359882,0.0208729,85930.0,85929.0,0.13236]
[1742437360162,0.3208729,85930.0,85929.0,0.13236]
[1742437360338,0.319976,85930.0,85929.0,0.13236]
[1742437361124,0.317976,85930.0,85929.0,0.13236]
[1742437361348,0.007339,85930.0,85929.0,0.13236]
[1742437361550,0.002339,85930.0,85929.0,0.330197]
[1742437361756,0.001339,85930.0,85929.0,0.460497]
[1742437361951,0.001339,85930.0,85929.0,0.4967866]
[1742437362160,0.002339,85930.0,85929.0,0.4967866]
[1742437362976,0.001339,85930.0,85929.0,0.4967866]
[1742437363390,0.000339,85930.0,85929.0,0.4977866]
[1742437363592,0.000339,85930.0,85929.0,0.4967866]
[1742437364344,0.000339,85930.0,85929.0,0.52009363]
[1742437364769,0.000339,85930.0,85929.0,0.460497]
[1742437365018,0.001339,85930.0,85929.0,0.460497]
[1742437365678,0.000339,85930.0,85929.0,0.460497]
[1742437365887,0.001339,85930.0,85929.0,0.59007203]
[1742437366144,0.001339,85930.0,85929.0,0.62629525]
[1742437366337,0.001339,85930.0,85929.0,0.59007203]
[1742437366953,0.001339,85930.0,85929.0,0.470497]
[1742437367615,0.001339,85930.0,85929.0,0.464497]
[1742437367999,0.000339,85930.0,85929.0,0.460497]
[1742437368362,0.001339,85930.0,85929.0,0.464497]
[1742437368996,0.001339,85930.0,85929.0,0.470497]
[1742437369960,0.001339,85930.0,85929.0,0.27266]
[1742437370418,0.001339,85930.0,85929.0,0.45886]
[1742437370836,0.001339,85930.0,85929.0,0.45286]
[1742437371049,0.001339,85930.0,85929.0,0.464497]
[1742437371459,0.000339,85930.0,85929.0,0.460497]
[1742437371664,0.001339,85930.0,85929.0,0.464497]
[1742437372399,0.001339,85930.0,85929.0,0.470497]
[1742437375416,0.001339,85930.0,85929.0,0.470497]
[1742437375941,0.017976,85930.0,85929.0,0.01]
[1742437376157,0.3188729,85930.0,85929.0,0.01]
[1742437376363,0.317976,85930.0,85929.0,0.01]
[1742437376570,0.317976,85930.0,85929.0,0.004]
[1742437376791,0.011638,85920.0,85919.0,0.13232]
[1742437377201,0.497857,85920.0,85919.0,0.13232]
[1742437378033,0.305,85915.0,85913.0,0.0001695]
[1742437378238,0.305,85915.0,85914.0,0.13232]
[1742437378859,0.3,85915.0,85914.0,0.143959]
[1742437379063,0.005,85918.0,85917.0,0.011639]
[1742437379241,0.005,85920.0,85917.0,0.011639]
[1742437379382,0.005,85920.0,85918.0,0.011639]
[1742437379583,0.005,85919.0,85918.0,0.011639]
[1742437379843,0.005,85915.0,85914.0,0.201869]
[1742437379978,0.005,85915.0,85914.0,0.330189]
[1742437380617,0.011639,85914.0,85913.0,0.0001695]
[1742437380820,0.3175359,85914.0,85913.0,0.0001695]
[1742437381029,0.316639,85914.0,85913.0,0.0001695]
[1742437382001,0.33827643,85914.0,85913.0,0.0001695]
[1742437382572,0.45785146,85914.0,85913.0,0.0001695]
[1742437382768,0.45785146,85914.0,85913.0,0.0021695]
[1742437383187,0.45785146,85914.0,85913.0,0.0051695]
[1742437383188,0.53425146,85914.0,85913.0,0.0051695]
[1742437383386,0.53425146,85914.0,85913.0,0.0031695]
[1742437383593,0.53425146,85914.0,85913.0,0.0001695]
[1742437383841,0.53725146,85914.0,85913.0,0.0001695]
[1742437386375,0.32963743,85914.0,85913.0,0.0001695]
[1742437386586,0.02963743,85914.0,85913.0,0.1980425]
[1742437386805,0.02463743,85914.0,85913.0,0.1980425]
[1742437387011,0.34127643,85914.0,85913.0,0.0001695]
[1742437387648,0.319639,85914.0,85913.0,0.0001695]
[1742437388454,0.308,85914.0,85913.0,0.0001695]
[1742437388690,0.008,85914.0,85913.0,0.0118085]
[1742437388874,0.008,85914.0,85913.0,0.0001695]
[1742437389404,0.0205359,85914.0,85913.0,0.0001695]
[1742437389607,0.04128785,85914.0,85913.0,0.0001695]
[1742437389816,0.02964885,85914.0,85913.0,0.0001695]
[1742437390068,0.02464885,85914.0,85913.0,0.0001695]
[1742437390303,0.02964885,85914.0,85913.0,0.0001695]
[1742437390604,0.02464885,85914.0,85913.0,0.0001695]
[1742437390889,0.003,85914.0,85913.0,0.0001695]
[1742437391208,0.007,85914.0,85913.0,0.0001695]
[1742437391603,0.005,85914.0,85913.0,0.0011695]
[1742437392140,0.5037679,85914.0,85913.0,0.0011695]
[1742437392312,0.502871,85914.0,85913.0,0.0011695]
[1742437392739,0.52451576,85914.0,85913.0,0.0011695]
[1742437392964,0.52451576,85914.0,85913.0,0.0001695]
[1742437393339,0.52451576,85914.0,85913.0,0.0011695]
[1742437394155,0.502871,85914.0,85913.0,0.0011695]
[1742437395023,0.305,85914.0,85913.0,0.0011695]
[1742437395249,0.305339,85914.0,85913.0,0.0128085]
[1742437396208,0.305339,85914.0,85913.0,0.0011695]
[1742437396493,0.50321,85914.0,85913.0,0.0011695]
[1742437402890,0.52486861,85914.0,85913.0,0.0011695]
[1742437403670,0.32699761,85914.0,85913.0,0.0011695]
[1742437403894,0.32699761,85914.0,85913.0,0.3249425]
[1742437403895,0.02199761,85914.0,85913.0,0.3249425]
[1742437404337,0.000339,85930.0,85929.0,0.197837]
[1742437406061,0.000339,85930.0,85929.0,0.199837]
[1742437406914,0.000339,85930.0,85929.0,0.200837]
[1742437407335,0.000339,85930.0,85929.0,0.199837]
[1742437407541,0.000339,85930.0,85929.0,0.201837]